{"text_format":"1","workbook":"xlsx","n_sheets":5,"sheets":["Sheet1","Sheet2","Sheet3","Sheet4","Sheet4 (2)"],"not_rendered":{"charts":0,"images":0,"macros":1,"external_links":0,"defined_names":0,"comments":0,"pivot_tables":0},"unopened":[],"bounds":{"document_bytes":16777216,"sheet_cells":100000,"rows_first":2000,"rows_last":500,"rows_between":2000,"halvings":0,"cell_chars":16384,"cell_head_chars":4096},"cells_cut":0,"cells_raw":0,"read":"whole","date_system":"1900"}

{"sheet":"Sheet1","index":0,"n_rows":11,"n_cols":2,"rows_kept":11,"cut":false,"hidden":false,"merged":[]}
["Data","Cleaned Data"]
["Gary   Youngman",{"$f":"RegExpReplace(A2, \"\\s\", \"\")","v":"GaryYoungman"}]
["Bernie  Eves",{"$f":"RegExpReplace(A3, \"\\s\", \"\")","v":"BernieEves"}]
["James Didn'T ",{"$f":"RegExpReplace(A4, \"\\s\", \"\")","v":"JamesDidn'T"}]
["Josan   Acuname",{"$f":"RegExpReplace(A5, \"\\s\", \"\")","v":"JosanAcuname"}]
["Dany    Comebackaser   ",{"$f":"RegExpReplace(A6, \"\\s\", \"\")","v":"DanyComebackaser"}]
["Rese Withoutaspoon",{"$f":"RegExpReplace(A7, \"\\s\", \"\")","v":"ReseWithoutaspoon"}]
["Blake Dreary   ",{"$f":"RegExpReplace(A8, \"\\s\", \"\")","v":"BlakeDreary"}]
["    Adelle    Fromthisside",{"$f":"RegExpReplace(A9, \"\\s\", \"\")","v":"AdelleFromthisside"}]
["Pariah    Salin",{"$f":"RegExpReplace(A10, \"\\s\", \"\")","v":"PariahSalin"}]
["Jonah Hill   ",{"$f":"RegExpReplace(A11, \"\\s\", \"\")","v":"JonahHill"}]

{"sheet":"Sheet2","index":1,"n_rows":11,"n_cols":2,"rows_kept":11,"cut":false,"hidden":false,"merged":[]}
["Data","Cleaned Data"]
["Gary   Youngman",{"$f":"RegExpReplace(A2, \"\\s{2,}\", \" \")","v":"Gary Youngman"}]
["Bernie  Eves",{"$f":"RegExpReplace(A3, \"\\s{2,}\", \" \")","v":"Bernie Eves"}]
["James Didn'T ",{"$f":"RegExpReplace(A4, \"\\s{2,}\", \" \")","v":"James Didn'T "}]
["Josan   Acuname",{"$f":"RegExpReplace(A5, \"\\s{2,}\", \" \")","v":"Josan Acuname"}]
["Dany    Comebackaser   ",{"$f":"RegExpReplace(A6, \"\\s{2,}\", \" \")","v":"Dany Comebackaser "}]
["Rese Withoutaspoon",{"$f":"RegExpReplace(A7, \"\\s{2,}\", \" \")","v":"Rese Withoutaspoon"}]
["Blake Dreary   ",{"$f":"RegExpReplace(A8, \"\\s{2,}\", \" \")","v":"Blake Dreary "}]
["    Adelle    Fromthisside",{"$f":"RegExpReplace(A9, \"\\s{2,}\", \" \")","v":" Adelle Fromthisside"}]
["Pariah    Salin",{"$f":"RegExpReplace(A10, \"\\s{2,}\", \" \")","v":"Pariah Salin"}]
["Jonah Hill   ",{"$f":"RegExpReplace(A11, \"\\s{2,}\", \" \")","v":"Jonah Hill "}]

{"sheet":"Sheet3","index":2,"n_rows":11,"n_cols":2,"rows_kept":11,"cut":false,"hidden":false,"merged":[]}
["Data","Cleaned Data"]
["Gary   Youngman",{"$f":"TRIM(A2)","v":"Gary Youngman"}]
["Bernie  Eves",{"$f":"TRIM(A3)","v":"Bernie Eves"}]
["James Didn'T ","James Didn'T"]
["Josan   Acuname","Josan Acuname"]
["Dany    Comebackaser   ","Dany Comebackaser"]
["Rese Withoutaspoon","Rese Withoutaspoon"]
["Blake Dreary   ","Blake Dreary"]
["    Adelle    Fromthisside","Adelle Fromthisside"]
["Pariah    Salin","Pariah Salin"]
["Jonah Hill   ","Jonah Hill"]

{"sheet":"Sheet4","index":3,"n_rows":11,"n_cols":3,"rows_kept":11,"cut":false,"hidden":false,"merged":[]}
["Data","Remove Leading Whitespaces","Remove Trailing Whitespaces"]
["Gary   Youngman",{"$f":"RegExpReplace(A2, \"^[\\s]+\", \"\")","v":"Gary   Youngman"},{"$f":"RegExpReplace(A2, \"[\\s]+$\", \"\")","v":"Gary   Youngman"}]
["    Bernie  Eves",{"$f":"RegExpReplace(A3, \"^[\\s]+\", \"\")","v":"Bernie  Eves"},{"$f":"RegExpReplace(A3, \"[\\s]+$\", \"\")","v":"    Bernie  Eves"}]
["James Didn'T ",{"$f":"RegExpReplace(A4, \"^[\\s]+\", \"\")","v":"James Didn'T "},{"$f":"RegExpReplace(A4, \"[\\s]+$\", \"\")","v":"James Didn'T"}]
[" Josan   Acuname",{"$f":"RegExpReplace(A5, \"^[\\s]+\", \"\")","v":"Josan   Acuname"},{"$f":"RegExpReplace(A5, \"[\\s]+$\", \"\")","v":" Josan   Acuname"}]
["                 Dany    Comebackaser   ",{"$f":"RegExpReplace(A6, \"^[\\s]+\", \"\")","v":"Dany    Comebackaser   "},{"$f":"RegExpReplace(A6, \"[\\s]+$\", \"\")","v":"                 Dany    Comebackaser"}]
["Rese Withoutaspoon",{"$f":"RegExpReplace(A7, \"^[\\s]+\", \"\")","v":"Rese Withoutaspoon"},{"$f":"RegExpReplace(A7, \"[\\s]+$\", \"\")","v":"Rese Withoutaspoon"}]
["Blake Dreary   ",{"$f":"RegExpReplace(A8, \"^[\\s]+\", \"\")","v":"Blake Dreary   "},{"$f":"RegExpReplace(A8, \"[\\s]+$\", \"\")","v":"Blake Dreary"}]
["    Adelle    Fromthisside",{"$f":"RegExpReplace(A9, \"^[\\s]+\", \"\")","v":"Adelle    Fromthisside"},{"$f":"RegExpReplace(A9, \"[\\s]+$\", \"\")","v":"    Adelle    Fromthisside"}]
["Pariah    Salin",{"$f":"RegExpReplace(A10, \"^[\\s]+\", \"\")","v":"Pariah    Salin"},{"$f":"RegExpReplace(A10, \"[\\s]+$\", \"\")","v":"Pariah    Salin"}]
["Jonah Hill   ",{"$f":"RegExpReplace(A11, \"^[\\s]+\", \"\")","v":"Jonah Hill   "},{"$f":"RegExpReplace(A11, \"[\\s]+$\", \"\")","v":"Jonah Hill"}]

{"sheet":"Sheet4 (2)","index":4,"n_rows":11,"n_cols":2,"rows_kept":11,"cut":false,"hidden":false,"merged":[]}
["Data","Remove Leading & Trailing Whitespaces"]
["Gary   Youngman",{"$f":"RegExpReplace(A2, \"^[\\s]+|[\\s]+$\", \"\")","v":"Gary   Youngman"}]
["    Bernie  Eves",{"$f":"RegExpReplace(A3, \"^[\\s]+|[\\s]+$\", \"\")","v":"Bernie  Eves"}]
["James Didn'T ",{"$f":"RegExpReplace(A4, \"^[\\s]+|[\\s]+$\", \"\")","v":"James Didn'T"}]
[" Josan   Acuname",{"$f":"RegExpReplace(A5, \"^[\\s]+|[\\s]+$\", \"\")","v":"Josan   Acuname"}]
["                 Dany    Comebackaser   ",{"$f":"RegExpReplace(A6, \"^[\\s]+|[\\s]+$\", \"\")","v":"Dany    Comebackaser"}]
["Rese Withoutaspoon",{"$f":"RegExpReplace(A7, \"^[\\s]+|[\\s]+$\", \"\")","v":"Rese Withoutaspoon"}]
["Blake Dreary   ",{"$f":"RegExpReplace(A8, \"^[\\s]+|[\\s]+$\", \"\")","v":"Blake Dreary"}]
["    Adelle    Fromthisside",{"$f":"RegExpReplace(A9, \"^[\\s]+|[\\s]+$\", \"\")","v":"Adelle    Fromthisside"}]
["Pariah    Salin",{"$f":"RegExpReplace(A10, \"^[\\s]+|[\\s]+$\", \"\")","v":"Pariah    Salin"}]
["Jonah Hill   ",{"$f":"RegExpReplace(A11, \"^[\\s]+|[\\s]+$\", \"\")","v":"Jonah Hill"}]